fUSD/lending_fUSD_20250110
["ID","MTS","AMOUNT","RATE_DAILY","PERIOD"]
[348371370,1736475053988,-699.2,0.00010821,2]
[348371371,1736475053997,-500.0,0.00010821,2]
[348371372,1736475054007,-501.83,0.00010821,2]
[348371373,1736475054015,-748.42,0.00010821,2]
[348371374,1736475054025,-508.71,0.00010821,2]
[348371375,1736475054034,-933.14,0.00010821,2]
[348371376,1736475054044,-500.0,0.00010821,2]
[348371377,1736475054053,-500.0,0.00010821,2]
[348371378,1736475054062,-414.24080094,0.00010821,2]
[348371379,1736475054071,-674.21,0.00010821,2]
[348371380,1736475054080,-500.0,0.00010821,2]
[348371381,1736475054089,-1028.82,0.00010821,2]
[348371382,1736475054097,-500.0,0.00010821,2]
[348371383,1736475054106,-500.0,0.00010821,2]
[348371384,1736475054116,-500.0,0.00010821,2]
[348371385,1736475054126,-643.85,0.00010821,2]
[348371386,1736475054135,-641.27,0.00010821,2]
[348371387,1736475054144,-575.67,0.00010821,2]
[348371388,1736475054154,-718.12,0.00010821,2]
[348371389,1736475054163,-500.0,0.00010821,2]
[348371390,1736475054172,-610.19136114,0.00010821,2]
[348371391,1736475054181,-2415.3741864,0.00010829,2]
[348371392,1736475054190,-790.60052223,0.00010831,2]
[348371393,1736475054199,-223.1069059,0.00010831,2]
[348371394,1736475054209,-1903.55189803,0.0001088,2]
[348371395,1736475054219,-162.28035628,0.00010884,2]
[348371396,1736475054228,-368.39643616,0.000109,2]
[348371397,1736475054238,-368.39643616,0.000109,2]
[348371398,1736475054247,-368.39643616,0.000109,2]
[348371399,1736475054256,-368.39643616,0.000109,2]
[348371400,1736475054265,-155.253,0.0001091,2]
[348371401,1736475054275,-150.0,0.00010912,2]
[348371402,1736475054284,-346.996598,0.00010927,2]
[348371403,1736475054294,-1116.01,0.00010927,2]
[348371404,1736475054303,-353.089075,0.00010927,2]
[348371405,1736475054313,-3237.83616323,0.00010927,2]
[348371406,1736475054325,-430.80383677,0.00010927,2]
[348371407,1736475054335,-1183.21,0.00010927,2]
[348371408,1736475054344,-104.04502041,0.00010927,2]
[348371409,1736475054367,-309.68921399,0.00010927,2]
[348371410,1736475055408,25987.0,0.0002,120]
[348371411,1736475175791,1212.36,8.219e-05,2]
[348371414,1736475784065,-1000.0,0.000143,31]
[348371415,1736475784090,-1491.53,0.000143,31]
[348371416,1736475784114,-1491.53,0.000143,31]
[348371417,1736475784142,-1491.53,0.000143,31]
[348371418,1736475784167,-1491.53,0.000143,31]
[348371419,1736475784193,-1491.53,0.000143,31]
[348371420,1736475784217,-1491.53,0.000143,31]
[348371421,1736475784240,-1491.53,0.000143,31]
[348371422,1736475784264,-1491.53,0.000143,31]
[348371423,1736475784287,-1491.53,0.000143,31]
[348371424,1736475784311,-1491.53,0.000143,31]
[348371425,1736475784334,-1491.53,0.000143,31]
[348371426,1736475784358,-1491.53,0.000143,31]
[348371427,1736475784382,-1491.53,0.000143,31]
[348371428,1736475784407,-1491.53,0.000143,31]
[348371429,1736475784431,-1491.53,0.000143,31]
[348371430,1736475784455,-1491.53,0.000143,31]
[348371462,1736476232407,-159.55,8.909e-05,2]
[348371463,1736476232417,-838.46699244,8.916e-05,2]
[348371464,1736476232427,-1500.0,8.916e-05,2]
[348371465,1736476232436,-838.46699244,8.926e-05,2]
[348371466,1736476232451,-838.46699244,8.936e-05,2]
[348371467,1736476232461,-294.3,8.936e-05,2]
[348371468,1736476232471,-428.8,8.961e-05,2]
[348371469,1736476232481,-1000.0,9.013e-05,2]
[348371470,1736476232491,-250.0,9.092e-05,2]
[348371471,1736476232501,-201.60356027,9.221e-05,2]
[348371472,1736476232511,-11152.71,9.221e-05,2]
[348371473,1736476232522,-258.03,9.251e-05,2]
[348371474,1736476232532,-168.72,9.293e-05,2]
[348371475,1736476232542,-1183.67446474,9.5e-05,2]
[348371476,1736476232552,-165.78,9.538e-05,2]
[348371477,1736476232561,-299.99,9.538e-05,2]
[348371478,1736476232571,-150.99,9.589e-05,2]
[348371479,1736476232580,-7145.16,9.589e-05,2]
[348371480,1736476232589,-681.7115,9.734e-05,2]
[348371481,1736476232599,-1487.4099,9.734e-05,2]
[348371482,1736476232608,-150.0,9.808e-05,2]
[348371483,1736476232618,-391.3121,9.809e-05,2]
[348371484,1736476232627,-15206.1378,9.809e-05,2]
[348371485,1736476232636,-724.13,9.832e-05,2]
[348371486,1736476232646,-982.15,9.832e-05,2]
[348371487,1736476232655,-831.09,9.832e-05,2]
[348371488,1736476232664,-932.15,9.832e-05,2]
[348371489,1736476232674,-1354.0,9.832e-05,2]
[348371490,1736476232683,-816.93,9.832e-05,2]
[348371491,1736476232694,-820.1,9.832e-05,2]
[348371492,1736476232704,-2341.92,9.832e-05,2]
[348371493,1736476232714,-2341.92,9.832e-05,2]
[348371494,1736476232724,-500.0,9.833e-05,2]
[348371495,1736476232733,-824.98,9.833e-05,2]
[348371496,1736476232743,-1000.0,9.833e-05,2]
[348371497,1736476232752,-1183.68,9.833e-05,2]
[348371498,1736476232762,-969.15,9.833e-05,2]
[348371499,1736476232771,-843.3,9.833e-05,2]
[348371500,1736476232780,-2617.9,9.833e-05,2]
[348371501,1736476232790,-1352.73,9.833e-05,2]
[348371502,1736476232799,-1595.3,9.834e-05,2]
[348371503,1736476232808,-339.0,9.899e-05,2]
[348371504,1736476232821,-1924.3323,9.899e-05,2]
[348371505,1736476232831,-9989.45661794,9.909e-05,2]
[348371506,1736476232843,-5411.84968317,9.909e-05,2]
[348371507,1736476232852,-413.17080805,9.971e-05,2]
[348371508,1736476232862,-3052.25990286,9.972e-05,2]
[348371509,1736476232871,-500.0,9.973e-05,2]
[348371510,1736476232880,-3052.25990286,9.974e-05,2]
[348371511,1736476232890,-3052.25990286,9.974e-05,2]
[348371512,1736476232899,-200.0,9.976e-05,2]
[348371513,1736476232909,-200.0,9.976e-05,2]
[348371514,1736476232918,-200.0,9.976e-05,2]
[348371515,1736476232927,-3052.25990286,9.978e-05,2]
[348371516,1736476232937,-200.0,9.981e-05,2]
[348371517,1736476232949,-200.0,9.981e-05,2]
[348371518,1736476232959,-200.0,9.982e-05,2]
[348371519,1736476232968,-413.17080805,9.982e-05,2]
[348371520,1736476232979,-200.0,9.984e-05,2]
[348371521,1736476232989,-3052.25990286,9.984e-05,2]
[348371522,1736476232998,-200.0,9.987e-05,2]
[348371524,1736476233008,-5409.24779757,9.988e-05,2]
[348371526,1736476233018,-200.0,9.989e-05,2]
[348371528,1736476233027,-413.17080805,9.99e-05,2]
[348371530,1736476233037,-200.0,9.991e-05,2]
[348371532,1736476233047,-3052.25990286,9.993e-05,2]
[348371534,1736476233058,-413.17080805,9.995e-05,2]
[348371536,1736476233067,-200.0,9.995e-05,2]
[348371538,1736476233077,-500.0,9.996e-05,2]
[348371539,1736476233086,-500.0,9.996e-05,2]
[348371542,1736476233096,-500.0,9.996e-05,2]
[348371543,1736476233106,-500.0,9.996e-05,2]
[348371546,1736476233115,-500.0,9.996e-05,2]
[348371547,1736476233125,-665.38,9.996e-05,2]
[348371550,1736476233135,-500.0,9.996e-05,2]
[348371551,1736476233146,-500.0,9.996e-05,2]
[348371554,1736476233159,-500.0,9.996e-05,2]
[348371555,1736476233169,-572.66,9.996e-05,2]
[348371557,1736476233178,-500.0,9.996e-05,2]
[348371560,1736476233188,-612.96,9.996e-05,2]
[348371562,1736476233200,-609.51802378,9.996e-05,2]
[348371563,1736476233209,-500.0,9.996e-05,2]
[348371565,1736476233220,-500.0,9.996e-05,2]
[348371567,1736476233230,-608.39,9.996e-05,2]
[348371569,1736476233241,-500.0,9.996e-05,2]
[348371572,1736476233251,-500.0,9.996e-05,2]
[348371573,1736476233261,-500.0,9.996e-05,2]
[348371576,1736476233271,-500.0,9.996e-05,2]
[348371577,1736476233280,-500.0,9.996e-05,2]
[348371579,1736476233290,-500.0,9.996e-05,2]
[348371581,1736476233299,-587.53,9.996e-05,2]
[348371583,1736476233309,-512.77,9.996e-05,2]
[348371585,1736476233319,-500.0,9.996e-05,2]
[348371588,1736476233329,-500.0,9.996e-05,2]
[348371590,1736476233339,-500.0,9.996e-05,2]
[348371592,1736476233349,-555.75,9.996e-05,2]
[348371594,1736476233360,-677.95,9.996e-05,2]
[348371596,1736476233370,-500.0,9.996e-05,2]
[348371598,1736476233379,-739.91,9.996e-05,2]
[348371600,1736476233388,-305.18868476,9.996e-05,2]
[348371602,1736476233398,-500.0,9.996e-05,2]
[348371603,1736476233407,-500.0,9.996e-05,2]
[348371604,1736476233417,-500.0,9.996e-05,2]
[348371605,1736476233427,-500.0,9.996e-05,2]
[348371606,1736476233438,-500.0,9.996e-05,2]
[348371607,1736476233449,-777.57,9.996e-05,2]
[348371608,1736476233458,-726.08,9.996e-05,2]
[348371609,1736476233468,-870.37,9.996e-05,2]
[348371610,1736476233478,-991.34,9.996e-05,2]
[348371611,1736476233488,-500.0,9.996e-05,2]
[348371612,1736476233498,-500.0,9.996e-05,2]
[348371613,1736476233508,-500.0,9.996e-05,2]
[348371614,1736476233518,-616.45,9.996e-05,2]
[348371615,1736476233528,-500.0,9.996e-05,2]
[348371616,1736476233538,-500.0,9.996e-05,2]
[348371617,1736476233548,-586.24,9.996e-05,2]
[348371618,1736476233557,-500.0,9.996e-05,2]
[348371619,1736476233567,-500.0,9.996e-05,2]
[348371620,1736476233577,-500.0,9.996e-05,2]
[348371621,1736476233587,-745.04,9.996e-05,2]
[348371622,1736476233596,-511.55,9.996e-05,2]
[348371623,1736476233606,-564.57,9.996e-05,2]
[348371624,1736476233616,-592.27,9.996e-05,2]
[348371625,1736476233627,-623.22,9.996e-05,2]
[348371626,1736476233637,-500.0,9.996e-05,2]
[348371627,1736476233647,-705.57,9.996e-05,2]
[348371628,1736476233656,-587.35,9.996e-05,2]
[348371629,1736476233665,-500.0,9.996e-05,2]
[348371630,1736476233675,-678.33,9.996e-05,2]
[348371631,1736476233684,-567.22,9.996e-05,2]
[348371632,1736476233696,-500.0,9.996e-05,2]
[348371633,1736476233708,-500.0,9.996e-05,2]
[348371634,1736476233718,-768.15,9.996e-05,2]
[348371635,1736476233727,-524.55,9.996e-05,2]
[348371636,1736476233737,-689.78,9.996e-05,2]
[348371637,1736476233747,-413.17080805,9.996e-05,2]
[348371638,1736476233757,-962.36,9.997e-05,2]
[348371639,1736476233767,-3149.48,9.997e-05,2]
[348371640,1736476233777,-1006.84,9.997e-05,2]
[348371641,1736476233786,-654.99,9.997e-05,2]
[348371642,1736476233796,-565.36,9.997e-05,2]
[348371643,1736476233807,-500.0,9.997e-05,2]
[348371644,1736476233817,-2771.9,9.997e-05,2]
[348371645,1736476233827,-500.0,9.997e-05,2]
[348371646,1736476233838,-1007.49,9.997e-05,2]
[348371647,1736476233849,-854.19,9.997e-05,2]
[348371648,1736476233859,-556.43,9.997e-05,2]
[348371649,1736476233868,-1270.09,9.997e-05,2]
[348371650,1736476233878,-1082.31,9.997e-05,2]
[348371651,1736476233889,-1275.78,9.997e-05,2]
[348371652,1736476233900,-1030.83,9.997e-05,2]
[348371653,1736476233911,-2076.2,9.997e-05,2]
[348371654,1736476233921,-1349.89,9.997e-05,2]
[348371655,1736476233932,-4387.99,9.997e-05,2]
[348371656,1736476233943,-2916.8,9.997e-05,2]
[348371657,1736476233953,-500.0,9.997e-05,2]
[348371658,1736476233964,-1042.79,9.997e-05,2]
[348371659,1736476233975,-2926.76,9.997e-05,2]
[348371660,1736476233985,-853.0,9.997e-05,2]
[348371661,1736476233995,-867.83,9.997e-05,2]
[348371662,1736476234004,-1181.98,9.997e-05,2]
[348371663,1736476234014,-1190.89,9.997e-05,2]
[348371664,1736476234024,-1205.35,9.997e-05,2]
[348371665,1736476234034,-1668.21,9.997e-05,2]
[348371666,1736476234043,-500.0,9.999e-05,2]
[348371667,1736476234053,-500.0,9.999e-05,2]
[348371668,1736476234062,-500.0,9.999e-05,2]
[348371669,1736476234073,-500.0,9.999e-05,2]
[348371670,1736476234082,-500.0,9.999e-05,2]
[348371671,1736476234092,-500.0,9.999e-05,2]
[348371672,1736476234102,-500.0,9.999e-05,2]
[348371673,1736476234112,-866.76,9.999e-05,2]
[348371674,1736476234122,-500.0,9.999e-05,2]
[348371675,1736476234133,-140.86610351,9.999e-05,2]
[348371676,1736476234151,-378.73389649,9.999e-05,2]
[348371677,1736476234161,-19.19389685,9.999e-05,2]
[348371678,1736476234174,-579.36353194,9.999e-05,2]
[348371679,1736476234253,-150.74257121,9.999e-05,2]
[348371680,1736476234263,-390.38527207,9.999e-05,2]
[348371681,1736476234276,-118.80929073,9.999e-05,2]
[348371682,1736476234286,-500.0,9.999e-05,2]
[348371683,1736476234296,-500.0,9.999e-05,2]
[348371684,1736476234305,-500.0,9.999e-05,2]
[348371685,1736476234315,-1475.89111451,9.999e-05,2]
[348371686,1736476234327,-43.26888549,9.999e-05,2]
[348371687,1736476234336,-456.73111451,9.999e-05,2]
[348371688,1736476234349,-2540.02888549,9.999e-05,2]
[348371689,1736476234359,-1404.63,9.999e-05,2]
[348371690,1736476234369,-500.0,9.999e-05,2]
[348371691,1736476234379,-882.37,9.999e-05,2]
[348371692,1736476234389,-829.51897696,9.999e-05,2]
[348371693,1736476234434,-336.50062,9.999e-05,2]
[348371694,1736476234467,-972.65235318,9.999e-05,2]
[348371696,1736476238200,-433.07804986,9.999e-05,2]
[348371697,1736476238210,-500.0,9.999e-05,2]
[348371698,1736476238221,-841.37,9.999e-05,2]
[348371699,1736476238230,-500.0,9.999e-05,2]
[348371700,1736476238241,-1487.29,9.999e-05,2]
[348371701,1736476238251,-500.0,9.999e-05,2]
[348371702,1736476238262,-699.89,9.999e-05,2]
[348371703,1736476238272,-500.0,9.999e-05,2]
[348371705,1736476238283,-740.01,9.999e-05,2]
[348371706,1736476238294,-2639.62,9.999e-05,2]
[348371707,1736476238304,-500.0,9.999e-05,2]
[348371708,1736476238313,-500.0,9.999e-05,2]
[348371709,1736476238323,-1018.87,9.999e-05,2]
[348371710,1736476238333,-500.0,9.999e-05,2]
[348371711,1736476238343,-500.0,9.999e-05,2]
[348371712,1736476238354,-439.99325785,9.999e-05,2]
[348371713,1736476238364,-500.0,9.999e-05,2]
[348371714,1736476238374,-196.67085358,9.999e-05,2]
[348371715,1736476238384,-164.56214103,9.999e-05,2]
[348371716,1736476238394,-500.10622676,9.999e-05,2]
[348371717,1736476238404,-526.77306919,9.999e-05,2]
[348371718,1736476238415,-413.17080805,9.999e-05,2]
[348371719,1736476238424,-220.95,0.0001,2]
[348371720,1736476238434,-11657.61748935,0.0001,2]
[348371721,1736476238461,-1668450.78559962,0.0001,2]
[348371722,1736476238471,-331.57580513,0.0001,2]
[348371723,1736476238481,-4239.10284717,0.0001,2]
[348371724,1736476238490,-1942275.58233613,0.0001,2]
[348371725,1736476238532,-3593.88520939,0.0001,2]
[348371726,1736476238544,-1011.86821652,0.0001,2]
[348371727,1736476238555,-69153.08589623,0.0001,2]
[348371728,1736476238590,-347.04,0.0001,2]
[348371737,1736476240482,-1637.8787113,0.0001,2]
[348371738,1736476240493,-728.86710491,0.0001,2]
[348371739,1736476240505,-270.65958031,0.0001,2]
[348371747,1736476243443,-830.65,9.996e-05,2]
[348371748,1736476243452,-500.0,9.999e-05,2]
[348371749,1736476243462,-3890.865814,0.0001,2]
[348371754,1736476246615,-790.6,9.832e-05,2]
[348371756,1736476246625,-500.0,9.999e-05,2]
[348371757,1736476246634,-500.0,9.999e-05,2]
[348371758,1736476246643,-12273.385,0.0001,2]
[348371759,1736476246655,-370.58734935,0.0001,2]
[348371762,1736476429649,300.0,8.219e-05,2]
[348371763,1736476429680,924.1,8.219e-05,2]
[348371768,1736476839095,2949.19250974,0.0002,120]
[348371807,1736477347626,1162.89,8.219e-05,2]
[348371833,1736477432612,-5927.78926057,8.517e-05,2]
[348371834,1736477432622,-164.49,9.028e-05,2]
[348371835,1736477432631,-301.75,9.062e-05,2]
[348371836,1736477432640,-1000.0,9.062e-05,2]
[348371837,1736477432650,-250.0,9.097e-05,2]
[348371838,1736477432659,-5938.89424884,9.114e-05,2]
[348371839,1736477432670,-519.86839141,9.114e-05,2]
[348371840,1736477432845,-2030.04735975,9.114e-05,2]
[348371841,1736477432855,-206.42,9.136e-05,2]
[348371842,1736477432864,-500.0,9.221e-05,3]
[348371843,1736477432874,-1323.08,9.309e-05,2]
[348371844,1736477432884,-168.16,9.522e-05,2]
[348371845,1736477432893,-875.08,9.84e-05,2]
[348371846,1736477432903,-300.28,9.84e-05,2]
[348371847,1736477432913,-151.84,9.84e-05,2]
[348371848,1736477432923,-150.0,9.84e-05,2]
[348371849,1736477432933,-150.31,9.84e-05,2]
[348371850,1736477432942,-203.39,9.84e-05,2]
[348371851,1736477432952,-979.82,9.84e-05,2]
[348371852,1736477432961,-150.0,9.84e-05,2]
[348371853,1736477432971,-979.82,9.84e-05,2]
[348371854,1736477432981,-150.0,9.84e-05,2]
[348371855,1736477432990,-394.99963614,9.84e-05,2]
[348371856,1736477433002,-584.82036386,9.84e-05,2]
[348371857,1736477433011,-150.0,9.84e-05,2]
[348371858,1736477433022,-1115.92958304,9.89e-05,2]
[348371859,1736477433034,-518.48714087,9.89e-05,2]
[348371860,1736477433047,-2311.44027609,9.89e-05,2]
[348371861,1736477433058,-150.99,9.89e-05,2]
[348371862,1736477433068,-761.5899,9.897e-05,2]
[348371863,1736477433079,-5835.4269,9.9e-05,2]
[348371864,1736477433089,-979.82,9.9e-05,2]
[348371865,1736477433099,-150.0,9.9e-05,2]
[348371866,1736477433109,-150.0,9.9e-05,2]
[348371867,1736477433119,-262.73292391,9.9e-05,2]
[348371868,1736477433131,-538.88,9.9e-05,2]
[348371869,1736477433143,-40.29707609,9.9e-05,2]
[348371870,1736477433153,-150.0,9.9e-05,2]
[348371871,1736477433163,-1653.51894502,9.911e-05,2]
[348371872,1736477433174,-1653.51894502,9.925e-05,2]
[348371873,1736477433186,-1653.51894502,9.94e-05,2]
[348371874,1736477433196,-1653.51894502,9.954e-05,2]
[348371875,1736477433206,-1653.51894502,9.969e-05,2]
[348371876,1736477433216,-1555.40807872,9.97e-05,2]
[348371877,1736477433226,-573.69415341,9.971e-05,2]
[348371878,1736477433236,-1555.40807872,9.971e-05,2]
[348371879,1736477433246,-1260.30789671,9.971e-05,2]
[348371880,1736477433256,-505.84129231,9.971e-05,2]
[348371881,1736477433265,-380.97917649,9.971e-05,2]
[348371882,1736477433275,-380.97917649,9.971e-05,2]
[348371883,1736477433284,-1260.30789671,9.971e-05,2]
[348371884,1736477433294,-525.26167991,9.973e-05,2]
[348371885,1736477433304,-525.26167991,9.973e-05,2]
[348371886,1736477433314,-380.97917649,9.974e-05,2]
[348371887,1736477433324,-1330.64097166,9.975e-05,2]
[348371888,1736477433334,-573.69415341,9.975e-05,2]
[348371889,1736477433343,-1330.64097166,9.976e-05,2]
[348371890,1736477433353,-1330.64097166,9.977e-05,2]
[348371891,1736477433363,-505.84129231,9.977e-05,2]
[348371892,1736477433372,-458.5511574,9.977e-05,2]
[348371893,1736477433382,-505.84129231,9.978e-05,2]
[348371894,1736477433392,-1330.64097166,9.979e-05,2]
[348371895,1736477433402,-1260.30789671,9.98e-05,2]
[348371896,1736477433412,-380.97917649,9.98e-05,2]
[348371897,1736477433422,-525.26167991,9.98e-05,2]
[348371898,1736477433434,-573.69415341,9.981e-05,2]
[348371899,1736477433443,-1330.64097166,9.983e-05,2]
[348371900,1736477433453,-1260.30789671,9.983e-05,2]
[348371901,1736477433463,-458.5511574,9.983e-05,2]
[348371902,1736477433475,-458.5511574,9.983e-05,2]
[348371903,1736477433486,-1653.51894502,9.983e-05,2]
[348371904,1736477433496,-458.5511574,9.984e-05,2]
[348371905,1736477433506,-1260.30789671,9.986e-05,2]
[348371906,1736477433516,-1555.40807872,9.986e-05,2]
[348371907,1736477433527,-573.69415341,9.986e-05,2]
[348371908,1736477433537,-380.97917649,9.989e-05,2]
[348371909,1736477433547,-496.0,9.989e-05,2]
[348371910,1736477433558,-500.0,9.989e-05,2]
[348371911,1736477433567,-500.0,9.989e-05,2]
[348371912,1736477433577,-500.0,9.989e-05,2]
[348371913,1736477433587,-500.0,9.989e-05,2]
[348371914,1736477433596,-500.0,9.989e-05,2]
[348371915,1736477433607,-500.0,9.989e-05,2]
[348371916,1736477433617,-500.0,9.989e-05,2]
[348371917,1736477433627,-500.0,9.989e-05,2]
[348371918,1736477433637,-500.0,9.989e-05,2]
[348371919,1736477433647,-500.0,9.989e-05,2]
[348371920,1736477433658,-500.0,9.989e-05,2]
[348371921,1736477433668,-500.0,9.989e-05,2]
[348371922,1736477433678,-500.0,9.989e-05,2]
[348371923,1736477433689,-500.0,9.989e-05,2]
[348371924,1736477433698,-500.0,9.989e-05,2]
[348371925,1736477433708,-500.0,9.989e-05,2]
[348371926,1736477433717,-500.0,9.989e-05,2]
[348371927,1736477433727,-1142.92,9.989e-05,2]
[348371928,1736477433737,-505.29705548,9.989e-05,2]
[348371929,1736477433747,-507.43457053,9.989e-05,2]
[348371930,1736477433757,-500.0,9.989e-05,2]
[348371931,1736477433767,-500.0,9.989e-05,2]
[348371932,1736477433777,-500.0,9.989e-05,2]
[348371933,1736477433787,-500.0,9.989e-05,2]
[348371934,1736477433797,-500.0,9.989e-05,2]
[348371935,1736477433807,-1233.37,9.989e-05,2]
[348371936,1736477433817,-500.0,9.989e-05,2]
[348371937,1736477433827,-500.0,9.989e-05,2]
[348371938,1736477433837,-500.0,9.989e-05,2]
[348371939,1736477433846,-6466.72,9.989e-05,2]
[348371940,1736477433856,-500.0,9.989e-05,2]
[348371941,1736477433865,-500.0,9.989e-05,2]
[348371942,1736477433876,-806.44,9.989e-05,2]
[348371943,1736477433885,-500.0,9.989e-05,2]
[348371944,1736477433895,-500.0,9.989e-05,2]
[348371945,1736477433905,-815.51,9.989e-05,2]
[348371946,1736477433915,-500.0,9.989e-05,2]
[348371947,1736477433924,-984.41,9.989e-05,2]
[348371948,1736477433937,-500.0,9.989e-05,2]
[348371949,1736477433947,-500.0,9.989e-05,2]
[348371950,1736477433957,-500.0,9.989e-05,2]
[348371951,1736477433966,-495.0,9.989e-05,2]
[348371952,1736477433977,-500.0,9.989e-05,2]
[348371953,1736477433986,-500.0,9.989e-05,2]
[348371954,1736477433997,-969.37,9.989e-05,2]
[348371955,1736477434007,-500.0,9.989e-05,2]
[348371956,1736477434017,-502.49474955,9.989e-05,2]
[348371957,1736477434027,-931.27,9.989e-05,2]
[348371958,1736477434036,-500.0,9.989e-05,2]
[348371959,1736477434046,-500.0,9.989e-05,2]
[348371960,1736477434056,-500.0,9.989e-05,2]
[348371961,1736477434066,-1601.35,9.989e-05,2]
[348371962,1736477434076,-500.0,9.989e-05,2]
[348371963,1736477434085,-502.50481137,9.989e-05,2]
[348371964,1736477434094,-500.0,9.989e-05,2]
[348371965,1736477434104,-504.78309415,9.989e-05,2]
[348371966,1736477434114,-500.0,9.989e-05,2]
[348371967,1736477434125,-500.0,9.989e-05,2]
[348371968,1736477434135,-500.0,9.989e-05,2]
[348371969,1736477434145,-2908.09,9.989e-05,2]
[348371970,1736477434156,-1381.38,9.989e-05,2]
[348371971,1736477434166,-534.48,9.989e-05,2]
[348371972,1736477434176,-500.0,9.989e-05,2]
[348371973,1736477434188,-500.0,9.989e-05,2]
[348371974,1736477434198,-500.0,9.989e-05,2]
[348371975,1736477434208,-500.0,9.989e-05,2]
[348371976,1736477434217,-1096.05,9.989e-05,2]
[348371977,1736477434226,-1498.7,9.989e-05,2]
[348371978,1736477434236,-500.0,9.989e-05,2]
[348371979,1736477434246,-500.0,9.989e-05,2]
[348371980,1736477434256,-500.0,9.989e-05,2]
[348371981,1736477434266,-500.0,9.989e-05,2]
[348371982,1736477434276,-500.0,9.989e-05,2]
[348371983,1736477434287,-500.0,9.989e-05,2]
[348371984,1736477434296,-722.51,9.989e-05,2]
[348371985,1736477434306,-500.0,9.989e-05,2]
[348371986,1736477434316,-2940.58,9.989e-05,2]
[348371987,1736477434326,-500.0,9.989e-05,2]
[348371988,1736477434335,-500.0,9.989e-05,2]
[348371989,1736477434345,-521.71,9.989e-05,2]
[348371990,1736477434354,-1498.1,9.989e-05,2]
[348371991,1736477434364,-500.0,9.989e-05,2]
[348371992,1736477434375,-1382.77,9.989e-05,2]
[348371993,1736477434385,-500.0,9.989e-05,2]
[348371994,1736477434395,-500.0,9.989e-05,2]
[348371995,1736477434404,-505.99,9.989e-05,2]
[348371996,1736477434415,-500.0,9.989e-05,2]
[348371997,1736477434425,-387.87001638,9.989e-05,2]
[348371998,1736477434437,-500.0,9.989e-05,2]
[348371999,1736477434447,-866.43,9.989e-05,2]
[348372000,1736477434456,-500.0,9.989e-05,2]
[348372001,1736477434465,-1335.62,9.989e-05,2]
[348372002,1736477434478,-2518.51,9.989e-05,2]
[348372003,1736477434489,-503.02333742,9.989e-05,2]
[348372004,1736477434499,-500.0,9.989e-05,2]
[348372005,1736477434508,-195.5449739,9.989e-05,2]
[348372006,1736477434523,-304.4550261,9.989e-05,2]
[348372007,1736477434532,-842.88245872,9.989e-05,2]
[348372008,1736477434544,-213.81754128,9.989e-05,2]
[348372009,1736477434555,-500.0,9.989e-05,2]
[348372010,1736477434565,-500.0,9.989e-05,2]
[348372011,1736477434575,-500.0,9.989e-05,2]
[348372012,1736477434585,-500.0,9.989e-05,2]
[348372013,1736477434595,-500.0,9.989e-05,2]
[348372014,1736477434605,-500.0,9.989e-05,2]
[348372015,1736477434614,-500.0,9.989e-05,2]
[348372016,1736477434624,-500.0,9.989e-05,2]
[348372017,1736477434633,-402.88245872,9.989e-05,2]
[348372018,1736477434645,-97.11754128,9.989e-05,2]
[348372019,1736477434655,-500.0,9.989e-05,2]
[348372020,1736477434665,-147.06651564,9.989e-05,2]
[348372021,1736477434677,-352.93348436,9.989e-05,2]
[348372022,1736477434689,-500.0,9.989e-05,2]
[348372023,1736477434698,-303.02433776,9.989e-05,2]
[348372024,1736477434710,-578.02566224,9.989e-05,2]
[348372025,1736477434720,-500.0,9.989e-05,2]
[348372026,1736477434731,-467.7124917,9.989e-05,2]
[348372027,1736477434743,-718.07203011,9.989e-05,2]
[348372028,1736477434786,-276.05547819,9.989e-05,2]
[348372029,1736477434796,-500.0,9.989e-05,2]
[348372030,1736477434806,-500.0,9.989e-05,2]
[348372031,1736477434816,-1029.74,9.989e-05,2]
[348372032,1736477434826,-294.07935735,9.989e-05,2]
[348372033,1736477434837,-205.92064265,9.989e-05,2]